bitfinex/quotes_ETHUSD_20241203
["timestamp","ask_amount","ask_price","bid_price","bid_amount"]
[1733256301882,0.55,3582.8,3582.4,2.79141]
[1733256302086,0.55,3582.6,3582.4,2.79141]
[1733256302301,0.55,3582.6,3582.5,2.79134]
[1733256304047,0.55,3582.6,3582.3,2.79146]
[1733256304331,0.55,3582.6,3582.4,2.79139]
[1733256306028,0.55,3582.6,3582.5,2.79134]
[1733256306680,0.55,3582.6,3582.5,4.70852047]
[1733256306832,0.55,3582.9,3582.3,2.79148]
[1733256307171,0.55,3583.0,3582.3,2.79148]
[1733256307356,0.55,3582.8,3582.3,2.79148]
[1733256307558,0.55,3583.0,3582.4,2.79141]
[1733256307758,0.55,3582.8,3582.4,2.79141]
[1733256307939,0.55,3582.8,3582.5,2.79133]
[1733256308473,0.55,3583.0,3582.6,2.79119]
[1733256308787,0.55,3582.8,3582.4,2.79135]
[1733256309079,0.55,3583.0,3582.5,2.79132]
[1733256309277,0.55,3582.8,3582.2,2.79153]
[1733256309778,0.55,3583.0,3582.2,2.79153]
[1733256310078,0.55,3582.8,3582.2,2.79153]
[1733256310372,0.55,3582.6,3582.0,2.79171]
[1733256310578,0.55,3582.6,3581.5,2.79209]
[1733256310579,0.55,3582.4,3581.8,2.79185]
[1733256310929,0.55,3582.4,3581.4,0.7947]
[1733256311136,0.55,3582.4,3582.0,2.79172]
[1733256312284,0.55,3582.4,3581.4,0.7947]
[1733256312577,0.55,3582.4,3581.7,2.79191]
[1733256313092,0.55,3582.2,3581.4,2.79213]
[1733256313372,0.55,3582.0,3581.4,2.79213]
[1733256313794,2.79145,3582.4,3581.0,2.79245]
[1733256313795,0.55,3581.8,3581.0,2.79248]
[1733256313960,0.2414,3581.7,3581.0,2.79248]
[1733256314161,0.55,3581.6,3581.0,3.146768]
[1733256314496,0.55,3581.6,3581.1,2.79243]
[1733256314997,0.55,3581.2,3580.3,3.60795]
[1733256315497,0.55,3581.2,3580.3,0.8149]
[1733256315797,0.55,3581.5,3581.4,2.79213]
[1733256316094,0.2414,3582.2,3581.4,0.638346]
[1733256316264,0.2414,3582.2,3581.1,0.7989]
[1733256316849,0.2414,3582.2,3581.2,2.81056385]
[1733256317051,0.2414,3582.5,3581.3,3.59113]
[1733256317490,0.2414,3582.5,3582.0,2.79168]
[1733256317650,0.2414,3582.5,3581.3,3.59113]
[1733256317851,0.2414,3582.5,3582.1,2.79163]
[1733256318051,0.2414,3582.5,3582.0,2.79172]
[1733256318312,0.2414,3582.5,3582.4,2.79142]
[1733256318447,0.2414,3582.8,3582.1,2.81056385]
[1733256318653,0.86796123,3583.1,3582.3,2.79144]
[1733256318854,0.2414,3583.1,3582.4,2.79142]
[1733256319098,0.2414,3583.1,3582.2,0.36706773]
[1733256319388,0.2414,3583.1,3582.4,2.79139]
[1733256319600,0.2414,3583.1,3582.2,0.36706773]
[1733256319779,0.55,3583.0,3582.3,0.31587477]
[1733256320579,0.55,3583.0,3582.6,2.79126]
[1733256322674,0.55,3583.0,3582.7,2.79118]
[1733256322999,0.55,3583.0,3582.3,3.10731477]
[1733256323175,0.55,3583.0,3582.6,2.79124]
[1733256323364,0.55,3583.0,3582.7,2.79118]
[1733256323861,0.51301996,3583.0,3582.8,2.7911]
[1733256325204,0.51301996,3583.0,3582.4,0.59178786]
[1733256325501,0.51301996,3583.0,3582.9,2.79103]
[1733256329316,0.20882293,3583.4,3583.2,2.79072]
[1733256329317,0.2414,3583.4,3583.2,2.79072]
[1733256329518,0.2414,3583.4,3583.0,2.8188563]
[1733256329747,0.2414,3583.4,3583.1,2.79081]
[1733256330331,0.2414,3583.4,3583.2,2.79076]
[1733256330854,0.7914,3583.4,3583.3,2.79072]
[1733256331246,0.29155142,3584.0,3583.4,2.79057]
[1733256331247,0.55,3583.6,3583.4,2.79057]
[1733256331556,0.55,3583.6,3583.5,2.79056]
[1733256332149,0.67821529,3583.6,3583.5,2.79056]
[1733256332351,0.55,3583.6,3583.5,2.79056]
[1733256332561,0.67938236,3583.6,3583.5,2.79056]
[1733256335377,0.67938236,3583.6,3583.5,3.348696]
[1733256335874,0.55,3583.9,3583.5,0.558136]
[1733256336095,0.55,3583.9,3583.6,2.79048]
[1733256336436,0.6794784,3583.8,3583.7,2.7904]
[1733256336638,0.55,3583.8,3583.7,2.7904]
[1733256336860,0.55,3584.1,3583.1,0.7581]
[1733256337080,0.55,3584.1,3583.9,2.79018]
[1733256337255,0.67948298,3584.0,3583.9,2.79018]
[1733256339540,0.55,3583.9,3583.8,2.79032]
[1733256340078,0.67955618,3583.9,3583.8,2.79032]
[1733256340444,0.55,3584.1,3583.8,2.79032]
[1733256340686,0.55,3583.9,3583.8,2.79032]
[1733256341055,0.2414,3584.3,3583.8,2.79032]
[1733256341056,0.55,3584.1,3583.8,2.79032]
[1733256341263,0.55,3583.9,3583.8,2.79032]
[1733256341586,0.55,3584.1,3583.9,2.79022]
[1733256344379,0.55,3584.1,3584.0,2.79017]
[1733256344585,0.55,3584.1,3583.6,0.7981]
[1733256344789,0.55,3584.1,3583.8,2.7903]
[1733256344938,0.55,3584.1,3583.9,2.79024]
[1733256345141,0.55,3584.1,3584.0,2.79017]
[1733256348888,0.55,3584.1,3583.6,0.7981]
[1733256349046,0.55,3583.9,3583.0,0.776]
[1733256349245,0.55,3583.7,3583.6,2.79041]
[1733256349444,0.55,3583.9,3583.6,2.79041]
[1733256350692,0.12983523,3583.8,3583.6,2.79041]
[1733256350848,0.55,3583.7,3583.4,2.79062]
[1733256351049,0.55,3583.9,3583.0,0.776]
[1733256351373,0.55,3583.7,3583.1,2.7908]
[1733256351576,0.55,3583.7,3583.2,2.79078]
[1733256351954,0.12982606,3583.6,3583.2,2.79078]
[1733256352168,0.12982606,3583.6,3582.7,5.60167385]
[1733256352366,0.12982606,3583.6,3582.9,0.7509]
[1733256352679,0.20889909,3584.1,3583.5,0.7509]
[1733256352680,0.20889909,3584.0,3583.5,0.7509]
[1733256352882,0.12980776,3583.9,3583.7,2.79039]
[1733256353080,0.55,3584.0,3583.8,2.79033]
[1733256353538,0.2414,3584.1,3583.8,2.79031]
[1733256353976,0.55,3584.1,3583.8,2.79031]
[1733256354364,0.55,3584.1,3583.6,2.79047]
[1733256354568,0.55,3584.1,3583.7,2.79039]
[1733256354771,0.12972086,3584.0,3583.7,2.79039]
[1733256355695,0.20896106,3584.1,3583.7,2.79039]
[1733256355854,0.12973915,3584.0,3583.7,2.79039]
[1733256356406,0.12973915,3584.0,3583.6,2.79045]
[1733256357096,0.12973915,3584.0,3583.8,2.79029]
[1733256357301,0.55,3584.1,3583.8,2.79029]
[1733256357662,0.2414,3584.4,3583.8,0.354119]
[1733256357663,0.12973915,3584.0,3583.8,0.354119]
[1733256357860,0.2414,3584.4,3583.9,2.79025]
[1733256358057,0.12972086,3584.1,3583.9,2.79025]
[1733256358356,0.2414,3584.4,3583.8,0.354119]
[1733256358559,0.20907935,3584.1,3583.7,2.79039]
[1733256358770,0.33884594,3584.1,3583.5,0.7509]
[1733256359111,0.12980318,3584.0,3583.6,2.79042]
[1733256359617,0.2414,3584.4,3583.9,2.79025]
[1733256359759,0.20914251,3584.1,3583.5,0.7509]
[1733256359966,0.2414,3584.4,3583.7,2.7904]
[1733256360177,0.20914995,3584.1,3583.7,2.7904]
[1733256360375,0.2414,3584.4,3583.8,2.79032]
[1733256360614,0.20917018,3584.1,3583.9,2.79023]
[1733256360820,0.2414,3584.4,3583.9,2.79023]
[1733256360969,0.20917451,3584.1,3583.6,0.35415]
[1733256361164,0.2414,3584.4,3583.7,0.389565]
[1733256361489,0.20918041,3584.1,3583.8,2.79032]
[1733256361668,0.20918041,3584.0,3583.8,2.79032]
[1733256361867,0.2414,3584.4,3583.8,2.79032]
[1733256362103,0.33898782,3584.1,3583.7,0.389565]
[1733256362310,0.20918921,3584.0,3583.7,2.79039]
[1733256362506,0.2414,3584.4,3583.8,2.7903]
[1733256362711,0.33900231,3584.1,3583.8,2.7903]
[1733256362917,0.12979861,3584.1,3583.8,2.7903]
[1733256363422,0.12979861,3584.1,3583.6,2.79045]
[1733256363620,0.20921418,3584.0,3583.6,2.79045]
[1733256363821,0.12979861,3584.1,3583.7,2.79036]
[1733256364025,0.20921679,3584.0,3583.7,2.79036]
[1733256364322,0.12979861,3584.0,3583.8,2.79032]
[1733256364729,0.2414,3584.4,3583.9,2.79025]
[1733256364878,0.20923914,3584.1,3583.9,2.79025]
[1733256365214,0.20923914,3584.0,3583.9,2.79025]
[1733256365588,0.2414,3584.4,3583.9,2.79025]
[1733256365921,0.20926315,3584.1,3583.6,0.354135]
[1733256366128,0.2414,3584.4,3584.1,2.7901]
[1733256366280,0.29732785,3584.2,3584.1,2.7901]
[1733256366679,0.29732785,3584.2,3583.7,0.3895555]
[1733256366885,0.29732785,3584.2,3583.5,0.7509]
[1733256366886,0.20926215,3584.1,3583.9,2.79024]
[1733256367184,0.47085551,3584.0,3583.9,2.79024]
[1733256368327,0.26159336,3584.0,3583.9,2.79024]
[1733256368528,0.47086122,3584.0,3583.9,2.79024]
[1733256369803,0.0880657,3584.2,3584.1,3.6189]
[1733256370022,0.0880657,3584.2,3584.1,4.259814]
[1733256370821,0.34964815,3584.2,3584.1,4.259814]
[1733256371229,0.3418135,3584.2,3584.1,4.259814]
[1733256371381,0.5510558,3584.2,3584.1,4.259814]
[1733256372326,0.5510558,3584.2,3584.1,3.431014]
[1733256374088,0.28947335,3584.2,3584.1,3.431014]
[1733256374329,0.55101514,3584.2,3584.1,3.431014]
[1733256374535,0.55101514,3584.2,3584.1,4.203014]
[1733256374837,0.34177284,3584.2,3584.1,4.203014]
[1733256375189,0.08023105,3584.2,3584.1,4.203014]
[1733256376216,1.05e-06,3584.2,3584.1,4.23090803]
[1733256376543,0.2414,3585.7,3585.1,2.78927]
[1733256376706,0.2414,3585.7,3585.0,0.7573]
[1733256376707,0.4706395,3585.6,3585.0,0.7573]
[1733256377030,0.2414,3585.7,3585.3,2.78914]
[1733256377031,0.58836861,3585.5,3585.3,2.78914]
[1733256377233,0.4706395,3585.4,3585.3,2.78914]
[1733256377605,0.47058611,3585.4,3585.3,2.78914]
[1733256377815,0.58831522,3585.4,3585.3,2.78914]
[1733256378217,0.55,3585.3,3584.4,2.81056385]
[1733256378416,0.47058611,3585.2,3585.1,2.78931]
[1733256378723,0.58451466,3585.2,3585.1,2.78931]
[1733256379028,0.47058611,3585.2,3585.1,2.78931]
[1733256380048,0.47058611,3585.2,3584.6,2.78967]
[1733256380207,0.47058611,3585.1,3585.0,2.78933]
[1733256386207,0.47058611,3585.1,3585.0,3.427999]
[1733256388319,0.47039723,3585.1,3585.0,3.427999]
[1733256393617,0.47039723,3585.1,3585.0,6.2664536]
[1733256393837,0.47039723,3585.1,3585.0,6.23856285]
[1733256394235,0.26122412,3585.1,3585.0,6.23856285]
[1733256395148,0.26122412,3585.1,3585.0,3.427999]
[1733256395459,0.20893181,3585.3,3585.2,2.78924]
[1733256395755,0.47009699,3585.3,3585.2,2.78924]
[1733256396254,0.47009699,3585.3,3585.2,3.4917439]
[1733256397061,0.47009699,3585.3,3585.2,4.3165439]
[1733256397473,6.99e-06,3585.3,3585.2,4.34443156]
[1733256397768,6.99e-06,3585.3,3585.2,4.3165439]
[1733256398328,6.99e-06,3585.3,3585.2,7.12710775]
[1733256398530,0.29078378,3586.8,3586.7,2.78807]
[1733256398849,0.29078378,3586.8,3585.2,3.51306775]
[1733256398850,0.86347586,3586.9,3586.8,2.788]
[1733256401966,0.86347586,3586.9,3586.8,3.5815]
[1733256402272,5.86e-06,3586.9,3586.8,6.94968585]
[1733256407647,0.05947704,3587.8,3587.1,2.78776]
[1733256407853,0.05947704,3587.8,3587.2,2.78768]
[1733256408048,0.10083218,3587.7,3586.9,2.78785]
[1733256408573,0.10083218,3587.7,3585.8,3.3]
[1733256408574,0.55,3587.6,3586.5,0.8237]
[1733256408760,0.55,3587.6,3586.5,3.61186]
[1733256409072,0.55,3587.6,3586.6,2.78814]
[1733256409279,0.55,3587.4,3586.6,2.78814]
[1733256409628,0.26028499,3587.3,3586.5,0.64224238]
[1733256409834,0.81028499,3587.2,3586.3,2.78838]
[1733256410074,0.55,3587.0,3586.3,2.78838]
[1733256410272,0.26028499,3586.9,3586.3,2.78838]
[1733256410481,0.26028499,3586.8,3586.4,2.7883]
[1733256410635,0.26028499,3586.7,3586.4,2.7883]
[1733256410839,0.10067625,3586.8,3586.4,0.27883]
[1733256410840,0.26028499,3586.6,3586.4,0.27883]
[1733256411054,0.26028499,3586.7,3586.2,2.78844]
[1733256411237,0.26028499,3586.6,3586.2,2.78844]
[1733256411475,0.26028499,3586.6,3585.9,3.63486385]
[1733256411476,0.26028499,3586.5,3586.3,2.78831]
[1733256411876,0.26028499,3586.9,3586.3,2.78831]
[1733256412076,0.26028499,3586.8,3586.0,2.78862]
[1733256412283,0.26028499,3586.7,3586.3,2.78832]
[1733256412587,0.26028499,3586.6,3586.3,2.78832]
[1733256412740,0.26028499,3586.5,3586.3,2.78832]
[1733256412940,0.26028499,3586.9,3586.3,2.78832]
[1733256413136,0.55,3587.0,3586.3,2.78832]
[1733256413137,0.31096124,3586.8,3586.6,2.78815]
[1733256413464,0.10067625,3586.8,3586.6,2.78815]
[1733256413838,0.55,3587.0,3586.6,2.78815]
[1733256414034,0.55,3587.0,3586.5,3.60782]
[1733256414277,0.10046521,3586.9,3586.5,3.60782]
[1733256414483,0.10046521,3586.9,3586.7,2.78803]
[1733256414789,0.29062813,3587.4,3586.6,0.67893372]
[1733256414955,2.78801,3586.8,3585.8,0.7948]
[1733256415150,2.81056385,3587.3,3585.8,0.7948]
[1733256415151,0.10046521,3586.7,3585.8,2.78873]
[1733256415394,2.78792,3586.9,3585.5,0.7948]
[1733256415535,0.10046981,3586.6,3585.7,2.78885]
[1733256415740,0.55,3587.0,3585.6,0.358384]
[1733256415741,0.55,3587.0,3585.9,2.78863]
[1733256416050,0.55,3586.8,3585.7,2.78885]
[1733256416254,0.10046981,3586.9,3585.9,0.7948]
[1733256416460,0.55,3587.3,3586.6,2.78814]
[1733256416651,0.10046981,3586.8,3586.6,2.78814]
[1733256416858,0.55,3587.3,3586.6,2.78814]
[1733256417059,0.10029088,3586.7,3586.6,2.78814]
[1733256417255,0.55,3587.3,3586.6,2.78814]
[1733256417585,0.55,3587.1,3586.6,2.78814]
[1733256417947,0.55,3587.3,3586.6,2.78814]
[1733256418244,0.55,3587.1,3586.6,2.78814]
[1733256418798,0.10029088,3587.0,3586.5,2.78822]
[1733256419488,0.55,3587.3,3586.6,2.78815]
[1733256419656,0.10029088,3586.9,3586.3,0.8018]
[1733256419842,0.55,3587.3,3586.4,0.36123639]
[1733256420171,0.55,3587.3,3586.7,2.78807]
[1733256420366,0.55,3587.1,3586.7,2.78807]
[1733256420573,0.55,3587.1,3586.4,0.36123639]
[1733256420881,0.55,3587.2,3586.4,0.36123639]
[1733256421066,0.10029088,3587.0,3586.4,0.36123639]
[1733256421277,0.55,3587.2,3586.4,0.36123639]
[1733256421446,0.10036428,3586.9,3586.4,3.14953639]
[1733256421645,0.29062813,3587.4,3586.5,3.10317364]
[1733256421646,0.55,3587.3,3586.5,3.10317364]
[1733256421959,0.10040558,3586.8,3586.5,3.10317364]
[1733256422155,0.55,3587.3,3586.5,3.10317364]
[1733256422383,0.55,3587.1,3586.5,3.10317364]
[1733256422808,0.10092425,3587.0,3586.5,3.10317364]
[1733256423020,0.55,3587.3,3586.5,3.10317364]
[1733256423311,3.29062813,3587.4,3585.9,0.7582]
[1733256423475,3.29062813,3587.4,3585.4,2.81056385]
[1733256423476,2.78792,3587.0,3585.8,2.78871]
[1733256423680,2.81056385,3587.1,3585.8,2.78871]
[1733256423867,2.78799,3586.9,3585.8,2.78871]
[1733256424071,2.788,3586.8,3585.8,2.78871]
[1733256424409,0.09750733,3586.7,3585.9,3.1033794]
[1733256424612,3.0,3587.1,3585.9,0.3147094]
[1733256424767,2.78778,3587.1,3586.1,2.78854]
[1733256425111,0.09742015,3587.0,3586.1,2.78854]
[1733256425410,0.55,3586.8,3586.1,2.78854]
[1733256425613,0.2609443,3586.7,3586.1,3.09886494]
[1733256425820,0.2609443,3586.6,3586.1,3.09886494]
[1733256426110,0.26099657,3586.5,3586.1,0.31032494]
[1733256426317,0.26099657,3586.4,3586.1,0.31032494]
[1733256426614,0.26099657,3586.3,3586.2,0.13956343]
[1733256428125,0.26099657,3586.3,3585.6,0.358384]
[1733256428343,0.26099657,3586.2,3585.4,2.78901]
[1733256428625,0.35828823,3586.1,3585.6,2.78893]
[1733256428934,0.26099657,3586.0,3585.6,2.78893]
[1733256429090,0.26099657,3585.9,3585.7,2.78885]
[1733256429291,3.0,3586.6,3585.7,2.78885]
[1733256429496,0.09729166,3585.8,3585.7,3.067735]
[1733256429708,0.29046558,3586.6,3586.0,2.78861]
[1733256429906,0.29046558,3586.6,3585.8,0.8053]
[1733256430088,0.09711726,3586.5,3586.0,2.78858]
[1733256430291,0.09711726,3586.5,3585.8,2.78875]
[1733256430531,0.09711726,3586.5,3585.8,0.3819435]
[1733256430688,0.09711726,3586.5,3586.2,2.78845]
[1733256431111,0.09711726,3586.5,3586.3,2.78834]
[1733256431477,0.29046558,3586.6,3585.9,2.78866]
[1733256431680,0.29046558,3586.6,3586.2,2.78842]
[1733256431926,0.29046558,3586.6,3586.4,2.78829]
[1733256432223,0.29046558,3586.6,3585.9,2.78866]
[1733256432224,0.29046558,3586.6,3586.2,2.78844]
[1733256432520,0.55,3587.4,3586.3,0.02788259]
[1733256432705,11.69056385,3587.6,3586.3,2.78838]
[1733256432905,0.3875723,3587.3,3586.7,2.788]
[1733256433122,0.3875723,3587.3,3586.8,2.78797]
[1733256433123,0.29044586,3587.3,3586.8,2.78797]
[1733256433281,0.29044586,3587.3,3586.4,2.78824]
[1733256433282,0.09712644,3587.2,3586.4,2.78824]
[1733256433485,0.26112485,3587.1,3586.4,2.78824]
[1733256433788,0.35840732,3587.0,3586.1,0.7985]
[1733256434030,0.26112485,3586.9,3586.5,2.78822]
[1733256434234,0.29044586,3587.3,3586.5,2.78822]
[1733256434400,0.29044586,3587.3,3586.6,2.78814]
[1733256434401,0.09728247,3586.8,3586.6,2.78814]
[1733256434606,0.29044586,3587.3,3586.6,2.78814]
[1733256434815,0.09724576,3586.7,3586.1,2.78852]
[1733256435018,3.26106681,3586.6,3585.5,3.56906]
[1733256435259,0.26106681,3586.5,3585.8,2.78876]
[1733256435509,0.26106681,3586.4,3585.5,2.78898]
[1733256435746,0.26106681,3586.4,3585.3,2.78914]
[1733256435747,3.26106681,3586.3,3585.3,2.78914]
[1733256435913,0.26106681,3586.2,3585.4,2.78904]
[1733256436114,0.26106681,3586.1,3585.0,2.7894]
[1733256436416,0.26106681,3586.0,3585.4,2.78908]
[1733256436626,0.26106681,3585.9,3585.4,2.78908]
[1733256436862,0.35798672,3585.9,3585.4,2.78908]
[1733256437023,0.09691991,3585.9,3585.4,2.78908]
[1733256437226,0.09691991,3585.9,3585.2,2.78923]
[1733256437413,0.55,3586.2,3585.2,2.78923]
[1733256437617,0.09691991,3585.8,3585.3,2.78916]
[1733256437810,0.91490238,3586.1,3585.3,2.78916]
[1733256438053,0.09691991,3585.7,3585.3,2.78916]
[1733256438259,0.91490238,3586.1,3585.3,2.78916]
[1733256438424,0.09691991,3585.6,3584.9,0.77]
[1733256438622,0.26120167,3585.9,3585.3,2.7891]
[1733256438949,0.55,3586.2,3584.9,0.77]
[1733256438950,0.09691991,3585.5,3585.4,2.78908]
[1733256439154,0.09691991,3585.5,3584.9,0.77]
[1733256439363,0.09691991,3585.5,3585.4,2.78908]
[1733256439560,0.26120588,3586.2,3585.4,0.8017]
[1733256439718,0.55,3586.7,3586.0,2.78859]
[1733256439719,1.16905639,3586.7,3586.0,2.78859]
[1733256440053,0.26119301,3586.6,3586.0,2.78859]
[1733256440255,0.26119301,3586.5,3586.0,2.78859]
[1733256440461,0.26119301,3586.4,3586.1,2.7885]
[1733256440614,1.16905639,3586.7,3586.2,2.78844]
[1733256440818,0.09660316,3586.3,3586.2,2.78844]
[1733256441034,0.41690564,3586.6,3586.2,2.78844]
[1733256441252,0.09660316,3586.3,3586.2,2.78844]
[1733256441634,2.78779,3587.1,3586.0,2.78855]
[1733256441790,5.85956209,3587.0,3585.9,2.78863]
[1733256441991,0.94388959,3586.9,3585.9,2.78863]
[1733256442240,0.26112824,3586.8,3585.9,2.78863]
[1733256442435,0.26112824,3586.7,3585.9,2.78863]
[1733256442587,0.26112824,3586.6,3585.9,2.78863]
[1733256442931,0.358117,3586.5,3585.9,2.78863]
[1733256443092,0.26112824,3586.4,3585.9,2.78863]
[1733256443295,0.09698876,3586.5,3585.9,2.78863]
[1733256443496,0.26108756,3586.4,3585.4,0.8017]
[1733256443690,0.09698876,3586.4,3586.0,2.78858]
[1733256443890,0.55,3586.8,3586.0,2.78858]
[1733256444257,1.23452693,3586.7,3586.0,2.78858]
[1733256444532,0.26108792,3586.6,3586.0,2.78858]
[1733256444740,0.26108792,3586.5,3585.8,2.78871]
[1733256444894,0.26108792,3586.4,3585.8,2.78871]
[1733256445234,0.26108792,3586.3,3585.8,2.78871]
[1733256445447,0.09689696,3586.3,3585.4,0.8017]
[1733256445606,2.81056385,3586.6,3585.6,2.78886]
[1733256445803,0.55,3586.4,3585.6,2.78886]
[1733256446022,0.26108737,3586.3,3585.6,2.78886]
[1733256446308,0.26108737,3586.2,3585.6,2.78886]
[1733256446509,0.55,3586.4,3584.7,2.78957]
[1733256446510,0.26108737,3586.1,3585.5,2.789]
[1733256446745,0.09685106,3586.1,3585.5,2.789]
[1733256446923,0.26112269,3586.0,3585.5,2.789]
[1733256447124,3.0,3586.3,3585.5,2.789]
[1733256447330,0.09685106,3585.9,3585.5,2.789]
[1733256447615,0.09685106,3585.8,3585.5,2.789]
[1733256447810,0.26112703,3586.1,3585.5,2.789]
[1733256448017,0.3554418,3586.0,3584.9,0.7904]
[1733256448217,0.0943141,3586.0,3585.7,2.78883]
[1733256448446,0.29045922,3586.2,3585.7,2.78883]
[1733256448652,0.0943141,3585.9,3585.7,2.78883]
[1733256448812,0.29045922,3586.2,3585.7,2.78883]
[1733256449017,0.35544963,3586.1,3585.5,2.78894]
[1733256449220,0.0943141,3586.1,3585.8,2.78877]
[1733256449449,0.0943141,3586.1,3585.0,2.7894]
[1733256449450,0.0943141,3586.1,3585.7,2.78884]
[1733256450260,0.0943141,3586.1,3585.5,2.78898]
[1733256450619,0.0943141,3586.1,3585.6,2.78893]
[1733256453356,0.26115904,3586.0,3585.6,2.78893]
[1733256453559,0.0943141,3586.1,3585.6,2.78893]
[1733256453862,0.09349077,3585.9,3585.7,2.78881]
[1733256454017,0.29045922,3586.2,3585.7,2.78881]
[1733256454218,0.09349077,3586.1,3585.7,2.78881]
[1733256454421,0.09349077,3586.1,3584.9,0.7904]
[1733256454730,0.09349077,3586.1,3585.3,2.78914]
[1733256455560,0.09349077,3586.1,3585.0,2.7894]
[1733256455763,0.55,3586.0,3585.3,2.78913]
[1733256456134,0.09338977,3585.9,3585.1,2.78925]
[1733256456450,0.09338977,3585.9,3584.9,0.7904]
[1733256456451,2.78886,3585.7,3584.5,2.78978]
[1733256456649,3.81118432,3585.6,3584.4,0.7959]
[1733256456855,0.26118432,3585.5,3584.5,0.358583]
[1733256457149,0.09311431,3585.5,3584.8,2.78954]
[1733256457460,0.09311431,3585.5,3584.9,2.78943]
[1733256457876,0.09311431,3585.5,3584.7,2.78962]
[1733256458036,0.09311431,3585.5,3584.8,2.78954]
[1733256460168,0.09311431,3585.5,3585.0,2.78939]
[1733256460575,0.09311431,3585.5,3584.4,0.7959]
[1733256460779,0.09311431,3585.5,3584.9,2.78944]
[1733256461137,3.0,3585.8,3584.9,2.78944]
[1733256461332,0.09270564,3585.4,3584.9,2.78944]
[1733256461534,0.81102423,3585.6,3584.9,2.78944]
[1733256461874,0.55,3585.7,3584.9,2.78944]
[1733256462076,0.09270564,3585.5,3584.9,2.78944]
[1733256462234,0.63605639,3585.6,3584.9,2.78944]
[1733256462573,0.09270564,3585.4,3584.9,2.78944]
[1733256462881,0.63605639,3585.6,3584.9,2.78944]
[1733256463072,0.09258666,3585.3,3584.9,2.78944]
[1733256463231,0.63605639,3585.6,3584.9,2.78944]
[1733256463429,0.09258666,3585.2,3584.9,2.78944]
[1733256463634,0.28929532,3585.5,3584.5,0.36064639]
[1733256463868,0.09260503,3585.1,3584.8,2.78955]
[1733256464034,0.28929532,3585.5,3584.8,2.78955]
[1733256464248,0.28929532,3585.5,3584.4,3.58568]
[1733256464249,0.09260503,3585.0,3584.4,2.78983]
[1733256464447,3.0,3585.2,3583.5,0.8123]
[1733256464760,0.09260503,3584.9,3584.3,2.78988]
[1733256465437,0.0925499,3584.8,3584.3,0.8123]
[1733256465641,0.26103583,3585.4,3584.9,2.78946]
[1733256465835,0.28929532,3585.5,3584.7,2.7896]
[1733256466035,0.28929532,3585.5,3585.0,2.78935]
[1733256466594,0.28929532,3585.5,3584.3,0.8123]
[1733256466595,0.28929532,3585.5,3584.9,2.78944]
[1733256466876,0.28929532,3585.5,3585.0,2.78937]
[1733256467085,0.0924213,3585.4,3585.0,2.78937]
[1733256467375,0.0924213,3585.4,3585.1,2.78928]
[1733256467694,0.0924213,3585.4,3584.8,0.7747]
[1733256467883,0.0924213,3585.4,3585.1,2.78926]
[1733256468196,0.0924213,3585.4,3584.8,0.7747]
[1733256468400,0.0924213,3585.4,3585.2,2.78922]
[1733256469398,0.0924213,3585.4,3585.0,2.78937]
[1733256469552,0.0924213,3585.4,3584.9,2.78947]
[1733256469761,0.0924213,3585.4,3585.1,2.78932]
[1733256470304,0.0924213,3585.4,3584.8,0.7747]
[1733256470469,0.0924213,3585.4,3585.3,2.78916]
[1733256470676,0.0924213,3585.4,3585.3,3.347016]
[1733256470874,0.28999449,3585.9,3585.6,2.78891]
[1733256471061,0.28999449,3585.9,3585.7,2.78883]
[1733256471261,0.09143271,3585.8,3585.7,2.78883]
[1733256471720,0.28999449,3585.9,3585.8,2.78877]
[1733256472421,0.28999449,3585.9,3585.6,2.78887]
[1733256472567,0.28999449,3585.9,3584.9,0.8198]
[1733256472786,0.60005032,3585.9,3585.1,2.78925]
[1733256473132,0.09149244,3585.8,3584.8,2.78952]
[1733256473289,3.09149244,3585.8,3584.8,2.78952]
[1733256473481,3.09149244,3585.8,3584.5,0.8198]
[1733256473870,0.55,3585.7,3584.8,2.78955]
[1733256474172,0.70303328,3585.6,3584.7,2.78957]
[1733256474376,0.79470479,3585.6,3584.7,2.78957]
[1733256475233,0.79470479,3585.6,3585.0,2.78933]
[1733256475389,0.79470479,3585.6,3584.5,0.8198]
[1733256475588,0.09167151,3585.6,3585.1,2.78925]
[1733256475817,0.09167151,3585.6,3584.6,2.78971]
[1733256476022,3.55,3585.8,3584.7,2.78958]
[1733256476178,0.09146028,3585.5,3584.8,2.78949]
[1733256476375,0.66391558,3585.5,3584.8,2.78949]
[1733256476618,0.09146028,3585.4,3584.8,2.78949]
[1733256476830,0.09146028,3585.4,3584.6,2.78964]
[1733256477908,0.55,3585.3,3584.6,2.78964]
[1733256478114,0.55,3585.3,3583.9,0.7591]
[1733256478311,0.09141894,3585.2,3584.0,0.67202929]
[1733256478497,0.09141894,3585.2,3584.7,2.78955]
[1733256479353,0.09141894,3585.2,3584.3,0.03011091]
[1733256479539,0.09141894,3585.2,3584.8,2.78952]
[1733256479755,0.09141894,3585.2,3584.5,2.78978]
[1733256480068,0.09136384,3585.1,3584.5,3.15488909]
[1733256480230,0.55,3585.6,3584.5,3.15488909]
[1733256480429,0.55,3585.4,3584.8,2.78948]
[1733256480776,0.55,3585.4,3584.3,0.03011091]
[1733256480777,0.55,3585.4,3584.9,2.78945]
[1733256480939,0.09136384,3585.3,3584.8,2.78949]
[1733256481476,0.09136384,3585.2,3584.8,2.78949]
[1733256481692,0.55,3585.6,3584.8,2.78949]
[1733256481878,0.09136384,3585.1,3584.8,2.78949]
[1733256482028,0.55,3585.6,3584.5,2.78978]
[1733256482230,0.55,3585.4,3584.5,2.78978]
[1733256482429,0.55,3585.4,3584.7,2.78959]
[1733256482672,0.09136384,3585.3,3584.7,2.78959]
[1733256482856,0.55,3585.6,3584.7,2.78959]